[Event "VII Lorca Open 2018"]
[Site "Lorca"]
[Date "2018.12.27"]
[Round "2"]
[White "Jimenez Ruano, Adrian"]
[Black "Plaskett, H James"]
[Result "1-0"]
[ECO "E43"]
[WhiteElo "2245"]
[BlackElo "2454"]
[Annotator "ChessBase"]
[PlyCount "110"]
[EventDate "2018.12.26"]
[EventType "swiss"]
[EventCountry "ESP"]
[SourceTitle "playchess.com"]
[Source "ChessBase"]
[SourceQuality "1"]
[TimeControl "5400+30"]

1. d4 {[%emt 0:00:00]} Nf6 {[%emt 0:01:12]} 2. c4 {[%emt 0:00:00]} e6 {[%emt 0:00:51]} 3. Nc3 {[%emt 0:00:11]} Bb4 {[%emt 0:00:08]} 4. e3 {[%emt 0:00:08]} b6 {[%emt 0:00:14]} 5. Bd3 {[%emt 0:00:08]} Bb7 {[%emt 0:00:07]} 6. Nf3 {[%emt 0:00:05]} Ne4 {[%emt 0:00:33]} 7. O-O {[%emt 0:01:39]} Bxc3 {[%emt 0:00:31]} 8. bxc3 {[%emt 0:00:08]} f5 {[%emt 0:01:15]} 9. Qc2 {[%emt 0:00:42]} O-O {[%emt 0:01:36]} 10. c5 {[%emt 0:17:40]} Rf6 {[%emt 0:05:39]} 11. Ne5 {[%emt 0:13:35]} Rh6 {[%emt 0:27:13]} 12. f3 {[%emt 0:05:02]} Qh4 {[%emt 0:38:24]} 13. g3 {[%emt 0:12:08]} Nxg3 {[%emt 0:02:43]} 14. hxg3 {[%emt 0:01:05]} Qh1+ {[%emt 0:01:40]} 15. Kf2 {[%emt 0:00:40]} Qh2+ {[%emt 0:00:02]} 16. Ke1 {[%emt 0:00:07]} Qxg3+ {[%emt 0:00:04]} 17. Qf2 {[%emt 0:02:15]} Qh3 {[%emt 0:00:02]} 18. e4 {[%emt 0:19:48]} Rh5 {[%emt 0:00:05]} 19. exf5 {[%emt 0:01:50]} Nc6 {[%emt 0:00:04]} 20. Nxc6 Bxc6 {[%emt 0:00:02]} 21. cxb6 {[%emt 0:13:09]} axb6 {[%emt 0:00:22]} 22. Bf4 {[%emt 0:00:09]} Rxf5 {[%emt 0:07:32]} 23. Bxf5 {[%emt 0:01:09]} Qxf5 {[%emt 0:00:02]} 24. Qd2 {[%emt 0:01:25]} d6 {[%emt 0:00:38]} 25. Rc1 {[%emt 0:03:18]} Rf8 {[%emt 0:00:18]} 26. Bg3 {[%emt 0:02:11]} Bxf3 {[%emt 0:00:18]} 27. Qe3 {[%emt 0:01:25]} h5 {[%emt 0:05:54]} 28. Kd2 {[%emt 0:00:46]} g5 {[%emt 0:01:48]} 29. Rce1 {[%emt 0:01:24]} Rf6 {[%emt 0:02:30]} 30. Rg1 {[%emt 0:00:14]} Qd5 {[%emt 0:01:23]} 31. Ra1 {[%emt 0:01:19]} Bg4 {[%emt 0:00:30]} 32. Qd3 {[%emt 0:01:40]} b5 {[%emt 0:00:35]} 33. a4 {[%emt 0:00:27]} bxa4 {[%emt 0:01:42]} 34. Rxa4 {[%emt 0:00:19]} Kg7 {[%emt 0:00:01]} 35. Ra7 {[%emt 0:00:48]} Rf7 {[%emt 0:00:11]} 36. c4 {[%emt 0:00:27]} Qc6 {[%emt 0:00:02]} 37. Qc3 {[%emt 0:00:27]} Qb6 {[%emt 0:00:28]} 38. d5+ {[%emt 0:00:41]} e5 {[%emt 0:01:36]} 39. Rga1 {[%emt 0:00:20]} Rf3 {[%emt 0:00:44]} 40. Bxe5+ {[%emt 0:00:12]} dxe5 {[%emt 0:00:28]} 41. Qxe5+ {[%emt 0:00:03]} Rf6 {[%emt 0:00:30]} 42. Rxc7+ {[%emt 0:00:48]} Kh6 {[%emt 0:00:16]} 43. Qxf6+ {[%emt 0:00:21]} Qxf6 {[%emt 0:00:08]} 44. Rc6 {[%emt 0:00:02]} Kg6 {[%emt 0:00:45]} 45. Rxf6+ {[%emt 0:00:59]} Kxf6 {[%emt 0:00:02]} 46. Re1 {[%emt 0:00:27]} h4 {[%emt 0:00:13]} 47. c5 {[%emt 0:00:57]} Bf3 {[%emt 0:00:09]} 48. d6 {[%emt 0:00:39]} Bc6 {[%emt 0:00:03]} 49. Ke3 {[%emt 0:00:30]} Ke5 {[%emt 0:02:10]} 50. Kf2+ {[%emt 0:00:06]} Kf4 {[%emt 0:00:09]} 51. Rd1 {[%emt 0:00:33]} g4 {[%emt 0:00:50]} 52. Rd4+ {[%emt 0:00:21]} Kf5 {[%emt 0:00:45]} 53. d7 {[%emt 0:00:45]} g3+ {[%emt 0:00:07]} 54. Ke2 {[%emt 0:00:34]} Bb5+ {[%emt 0:00:15]} 55. Ke3 {[%emt 0:00:27]} Bxd7 {[%emt 0:01:09]} 1-0

[Event "VII Lorca Open 2018"]
[Site "Lorca"]
[Date "2018.12.27"]
[Round "2"]
[White "Montanes Arribas, Adrian"]
[Black "Tejedor Fuente, Enrique"]
[Result "0-1"]
[ECO "D02"]
[WhiteElo "2242"]
[BlackElo "2428"]
[Annotator "NA"]
[PlyCount "58"]
[EventDate "2018.12.26"]
[EventType "swiss"]
[EventCountry "ESP"]
[SourceTitle "playchess.com"]
[Source "ChessBase"]
[SourceQuality "1"]
[TimeControl "5400+30"]

1. d4 {[%emt 0:05:00]} d5 {[%emt 0:00:20]} 2. Nf3 {[%emt 0:00:39]} c6 {[%emt 0:01:14]} 3. Bf4 {[%emt 0:00:30]} Nf6 {[%emt 0:00:30]} 4. e3 {[%emt 0:00:30]} Qb6 {[%emt 0:00:30]} 5. b3 {[%emt 0:00:30]} g6 {[%emt 0:00:30] D02: 1 d4 d5 2 Nf3 sidelines, including 2...Nf6 3 g3 and 2...Nf6 3 Bf4} (5... Nh5 6. Bg5 h6 7. Bh4 Nd7 8. Ne5 Nxe5 9. Qxh5 Ng4 10. Bg3 g6 11. Qh4 Bg7 {0-1 (11) Bareev,E (2669)-Nakamura,H (2816) Las Vegas 2015}) 6. Bd3 {[%emt 0:00:30]} Bg7 {[%emt 0:00:30]} 7. h3 {[%emt 0:00:30]} O-O {[%emt 0:00:30]} 8. O-O {[%emt 0:00:30]} c5 {[%emt 0:00:30]} 9. Nbd2 {[%emt 0:16:49]} cxd4 $146 {[%emt 0:18:41]} ({Predecessor:} 9... Nc6 10. c3 Nd7 11. Rc1 e5 12. Nxe5 Ndxe5 13. dxe5 Nxe5 14. Bb1 {0-1 (36) Bottino,C-Lantini,M Caorle 1984}) 10. exd4 {[%emt 0:00:30]} Nc6 {[%emt 0:00:30]} 11. c3 {[%emt 0:00:30]} Bf5 {[%emt 0:00:30]} 12. Bxf5 {[%emt 0:00:30]} gxf5 {[%emt 0:00:30]} 13. Ne5 {[%emt 0:00:30]} Rac8 {[%emt 0:00:30]} 14. Qf3 {[%emt 0:00:30]} e6 {[%emt 0:00:30]} 15. g4 {[%emt 0:00:30]} Ne4 {[%emt 0:00:30]} 16. Nd7 {[%emt 0:32:14]} Qd8 $1 {[%emt 0:44:28]} 17. Nxf8 {[%emt 0:00:12]} Nxc3 {[%emt 0:00:32]} 18. Nxe6 {[%emt 0:18:58]} (18. Qxc3 $16 Nxd4 19. Qe3) 18... fxe6 {[%emt 0:00:16]} 19. Qxc3 {[%emt 0:00:07]} Nxd4 {[%emt 0:00:21]} 20. Qe3 {[%emt 0:00:38]} Rc3 $14 {[%emt 0:00:22]} 21. Qe1 {[%emt 0:01:24]} Qh4 {[%emt 0:16:06]} 22. f3 {[%emt 0:02:05]} Qxh3 {[%emt 0:03:42]} 23. Rf2 {[%emt 0:09:24]} Rc6 {[%emt 0:02:34]} 24. Rc1 {[%emt 0:05:19]} Kf7 {[%emt 0:04:15]} 25. Rxc6 {[%emt 0:00:10]} bxc6 {[%emt 0:00:00]} 26. Be5 {[%emt 0:00:30]} Nc2 {[%emt 0:00:30]} 27. Qf1 {[%emt 0:00:30]} Qh6 {[%emt 0:00:30]} 28. Bxg7 {[%emt 0:00:30]} Qxg7 {[%emt 0:00:30]} 29. Qh3 {[%emt 0:00:30]} Ke7 {[%emt 0:00:30]} 0-1

[Event "VII Lorca Open 2018"]
[Site "Lorca"]
[Date "2018.12.27"]
[Round "2"]
[White "Hernandez Estevez, Yudania"]
[Black "Bjerre, Jonas Buhl"]
[Result "0-1"]
[ECO "B92"]
[WhiteElo "2219"]
[BlackElo "2421"]
[Annotator "NA"]
[PlyCount "78"]
[EventDate "2018.12.26"]
[EventType "swiss"]
[EventCountry "ESP"]
[SourceTitle "playchess.com"]
[Source "ChessBase"]
[SourceQuality "1"]
[TimeControl "5400+30"]

1. e4 {[%emt 0:00:00]} c5 {[%emt 0:00:00]} 2. Nf3 {[%emt 0:00:00]} d6 {[%emt 0:00:00]} 3. d4 {[%emt 0:00:00]} cxd4 {[%emt 0:00:00]} 4. Nxd4 {[%emt 0:00:00]} Nf6 {[%emt 0:00:00]} 5. Nc3 {[%emt 0:00:00]} a6 {[%emt 0:00:05]} 6. Be2 {[%emt 0:00:10]} e5 {[%emt 0:00:32]} 7. Nb3 {[%emt 0:00:16]} Be7 {[%emt 0:00:21]} 8. O-O {[%emt 0:00:08]} O-O {[%emt 0:00:13]} 9. Be3 {[%emt 0:00:10]} Be6 {[%emt 0:02:13]} 10. Qd2 {[%emt 0:01:34]} Nbd7 {[%emt 0:00:51]} 11. a4 {[%emt 0:00:41]} Rc8 {[%emt 0:01:31]} 12. a5 {[%emt 0:04:17]} Qc7 {[%emt 0:01:21]} 13. Rfd1 {[%emt 0:02:50]} Qc6 {[%emt 0:05:14]} 14. Bf3 {[%emt 0:05:02] B92: Sicilian Najdorf: 6 Be2} Rfd8 {[%emt 0:04:55]} 15. Qe1 {[%emt 0:02:31]} Nf8 {[%emt 0:06:46]} (15... h6 16. Nc1 Qc7 17. h3 Re8 18. Nb3 Qb8 19. Rac1 Bd8 20. Ra1 Rc4 21. Nd2 Rc6 22. Nf1 {½-½ (42) Hou,Y (2653)-Yu,Y (2734) Danzhou 2016}) 16. Bb6 {[%emt 0:04:04]} Re8 {[%emt 0:01:21]} 17. Rd2 {[%emt 0:02:33]} Ng6 {[%emt 0:06:00]} 18. g3 {[%emt 0:06:58]} Bd8 $146 {[%emt 0:03:51]} ({Predecessor:} 18... Rf8 19. Qd1 Nd7 20. Be3 Rfd8 21. Nc1 Nf6 22. Bb6 {1-0 (59) Pelizzola,D (2127)-Papale,C (1821) Milan 2014}) 19. Be3 {[%emt 0:16:53]} Ng4 {[%emt 0:02:38]} 20. Bxg4 {[%emt 0:02:17]} Bxg4 {[%emt 0:00:08]} 21. Kg2 {[%emt 0:06:13]} f5 {[%emt 0:05:52]} 22. f3 {[%emt 0:10:23]} Bh5 {[%emt 0:00:50]} 23. Nd5 {[%emt 0:07:37]} Rf8 {[%emt 0:03:47]} 24. Bb6 $19 {[%emt 0:01:48]} fxe4 {[%emt 0:02:43]} 25. fxe4 {[%emt 0:00:15]} Bg5 {[%emt 0:04:39]} 26. Be3 {[%emt 0:10:08]} Bf3+ {[%emt 0:02:28]} 27. Kg1 {[%emt 0:00:40]} Bxe4 {[%emt 0:01:57]} 28. Nc3 {[%emt 0:01:32]} Bxe3+ {[%emt 0:04:14]} 29. Qxe3 {[%emt 0:00:05]} Bf3 {[%emt 0:03:13]} 30. Rf1 {[%emt 0:04:32]} Bg4 {[%emt 0:04:29]} 31. Re1 {[%emt 0:01:19]} Bh3 {[%emt 0:04:53]} 32. Qe4 {[%emt 0:00:41]} Bf5 {[%emt 0:07:32]} 33. Qe3 {[%emt 0:01:38]} Rf7 {[%emt 0:02:29]} 34. Ne4 {[%emt 0:03:40]} d5 {[%emt 0:02:06]} 35. Ng5 {[%emt 0:00:57]} Rf6 {[%emt 0:00:59]} 36. Qf3 {[%emt 0:02:02]} h6 {[%emt 0:01:35]} 37. Qh5 {[%emt 0:02:13]} hxg5 {[%emt 0:00:56]} 38. Rf2 {[%emt 0:00:05]} Bxc2 {[%emt 0:01:57]} 39. Rxf6 Qxf6 {[%emt 0:00:07]} 0-1

[Event "VII Lorca Open 2018"]
[Site "Lorca"]
[Date "2018.12.27"]
[Round "2"]
[White "Aguilera Lopez, Alejandro"]
[Black "Domingo Nunez, Alejandro"]
[Result "0-1"]
[ECO "A48"]
[WhiteElo "2198"]
[BlackElo "2404"]
[Annotator "NA"]
[PlyCount "72"]
[EventDate "2018.12.26"]
[EventType "swiss"]
[EventCountry "ESP"]
[SourceTitle "playchess.com"]
[Source "ChessBase"]
[SourceQuality "1"]
[TimeControl "5400+30"]

1. d4 {[%emt 0:00:00]} Nf6 {[%emt 0:00:00]} 2. Nf3 {[%emt 0:00:00]} g6 {[%emt 0:00:00]} 3. Bg5 {[%emt 0:00:14]} Bg7 {[%emt 0:00:00]} 4. e3 {[%emt 0:00:10]} O-O {[%emt 0:00:15]} 5. Be2 {[%emt 0:00:06]} d6 {[%emt 0:00:04]} 6. O-O {[%emt 0:00:08]} b6 {[%emt 0:00:33] A48: 1 d4 Nf6 2 Nf3 g6: Torre, London and Colle Systems} 7. c4 {[%emt 0:02:38]} Nbd7 {[%emt 0:03:39]} 8. Nc3 {[%emt 0:00:40]} h6 {[%emt 0:00:43]} (8... Bb7 9. Nd2 h6 10. Bh4 d5 11. cxd5 Nxd5 12. Nxd5 Bxd5 13. Bf3 Bxf3 14. Nxf3 c5 15. Rc1 Rc8 16. Qe2 cxd4 17. Nxd4 Rxc1 18. Rxc1 Bxd4 19. exd4 {½-½ (47) Aronian,L (2784)-Li,C (2755) Stavanger 2016}) 9. Bh4 {[%emt 0:00:39]} g5 {[%emt 0:00:06]} 10. Bg3 {[%emt 0:00:05]} Nh5 {[%emt 0:00:04]} 11. Qc2 $146 {[%emt 0:01:02]} ({Predecessor:} 11. Rc1 Nxg3 12. hxg3 e5 13. dxe5 Nxe5 14. Nxe5 Bxe5 15. Bf3 Rb8 {½-½ (45) Nunes,A (1746)-Tamarozi,I (2013) Itajai 2017}) 11... Nxg3 {[%emt 0:00:08]} 12. hxg3 {[%emt 0:00:09]} Bb7 {[%emt 0:06:34]} 13. Rad1 {[%emt 0:02:31]} e6 {[%emt 0:03:36]} 14. e4 {[%emt 0:02:39]} Qe7 {[%emt 0:01:55]} 15. Nh2 {[%emt 0:02:34]} Rae8 {[%emt 0:15:40]} 16. Rfe1 {[%emt 0:04:57]} a6 {[%emt 0:05:51]} 17. b4 {[%emt 0:04:47]} c5 {[%emt 0:03:03]} 18. bxc5 {[%emt 0:03:45]} dxc5 {[%emt 0:07:46]} 19. d5 {[%emt 0:00:40]} exd5 {[%emt 0:00:20]} 20. cxd5 {[%emt 0:02:27]} b5 {[%emt 0:09:20]} 21. Bg4 {[%emt 0:04:41]} Ne5 {[%emt 0:12:34]} 22. Bf5 {[%emt 0:02:16]} c4 $1 {[%emt 0:04:09]} 23. d6 {[%emt 0:06:32]} Qf6 {[%emt 0:00:05]} 24. d7 {[%emt 0:01:24]} Rd8 $16 {[%emt 0:01:34]} (24... Nxd7 $1 $11 {remains equal.} 25. Nxb5 axb5 26. Bxd7 Re7) 25. Nd5 {[%emt 0:00:30]} Qd6 {[%emt 0:04:20]} 26. Nf4 {[%emt 0:07:53]} Qc6 {[%emt 0:02:13]} 27. Nd5 {[%emt 0:06:23]} Kh8 {[%emt 0:00:27]} 28. Nb4 {[%emt 0:01:06]} Qc7 {[%emt 0:03:11]} 29. Nf3 {[%emt 0:07:01]} Nxd7 {[%emt 0:01:59]} 30. Qe2 {[%emt 0:00:30]} Rfe8 {[%emt 0:02:52]} 31. Nd5 {[%emt 0:01:50]} Qc6 {[%emt 0:08:22]} 32. Nd4 {[%emt 0:05:17]} Qc5 {[%emt 0:00:54]} 33. Qh5 {[%emt 0:00:46]} Bxd5 {[%emt 0:00:31]} 34. exd5 {[%emt 0:00:31]} Rxe1+ {[%emt 0:00:13]} 35. Rxe1 {[%emt 0:00:10]} Qxd4 {[%emt 0:01:18]} 36. Qxf7 {[%emt 0:00:59]} Qf6 {[%emt 0:00:50]} 0-1

[Event "VII Lorca Open 2018"]
[Site "Lorca"]
[Date "2018.12.27"]
[Round "2"]
[White "Sanchez Jerez, Emilio Miguel"]
[Black "Sabuk, Piotr"]
[Result "0-1"]
[ECO "C50"]
[WhiteElo "2193"]
[BlackElo "2391"]
[Annotator "NA"]
[PlyCount "144"]
[EventDate "2018.12.26"]
[EventType "swiss"]
[EventCountry "ESP"]
[SourceTitle "playchess.com"]
[Source "ChessBase"]
[SourceQuality "1"]
[TimeControl "5400+30"]

1. e4 {[%emt 0:00:00]} e5 {[%emt 0:00:13]} 2. Nf3 {[%emt 0:00:00]} Nc6 {[%emt 0:00:27]} 3. Bc4 {[%emt 0:00:05]} d6 {[%emt 0:00:45]} 4. d4 {[%emt 0:00:48]} exd4 {[%emt 0:01:43]} 5. Nxd4 {[%emt 0:00:08]} g6 {[%emt 0:01:08]} 6. O-O {[%emt 0:08:50]} Bg7 {[%emt 0:02:35]} 7. Nxc6 {[%emt 0:02:05]} bxc6 {[%emt 0:00:07]} 8. Qf3 {[%emt 0:00:34]} Qf6 {[%emt 0:02:49]} 9. Qg3 {[%emt 0:01:02]} Ne7 {[%emt 0:13:03]} 10. Nc3 {[%emt 0:01:24]} Rb8 {[%emt 0:08:52]} 11. Bb3 {[%emt 0:02:48]} h6 {[%emt 0:09:36]} 12. Be3 {[%emt 0:05:22]} a5 {[%emt 0:10:20]} 13. f4 {[%emt 0:05:46]} O-O {[%emt 0:04:12]} 14. Rad1 {[%emt 0:13:22]} Ba6 {[%emt 0:04:18]} 15. Rfe1 {[%emt 0:11:06]} c5 {[%emt 0:00:54]} 16. e5 {[%emt 0:02:19]} Qf5 {[%emt 0:02:58]} 17. exd6 {[%emt 0:02:59]} cxd6 {[%emt 0:00:02]} 18. Rxd6 {[%emt 0:01:16]} Qc8 {[%emt 0:00:54]} 19. Nd5 {[%emt 0:09:49]} Nf5 {[%emt 0:02:51]} 20. Qf2 {[%emt 0:03:01]} c4 {[%emt 0:09:16]} 21. g4 {[%emt 0:08:49]} Nxd6 {[%emt 0:00:36]} 22. Ne7+ {[%emt 0:02:05]} Kh7 {[%emt 0:00:09]} 23. Nxc8 Rfxc8 {[%emt 0:05:55]} 24. Ba4 {[%emt 0:07:09]} Ne4 {[%emt 0:00:43]} 25. Qg2 {[%emt 0:02:52]} Bb7 {[%emt 0:01:20]} 26. Qh3 {[%emt 0:00:46]} Rd8 {[%emt 0:10:50]} 27. f5 {[%emt 0:03:54]} Nd2 {[%emt 0:01:04]} 28. fxg6+ fxg6 {[%emt 0:00:01]} 29. Bxd2 Rxd2 {[%emt 0:00:02]} 30. Re7 {[%emt 0:02:45]} Rd1+ {[%emt 0:04:54]} 31. Kf2 {[%emt 0:00:12]} Rf8+ {[%emt 0:00:05]} 32. Ke2 {[%emt 0:00:40]} Bf3+ {[%emt 0:00:17]} 33. Qxf3 {[%emt 0:00:44]} Rxf3 {[%emt 0:00:14]} 34. Kxf3 {[%emt 0:01:14]} Rf1+ {[%emt 0:00:56]} 35. Kg3 {[%emt 0:01:27]} Ra1 {[%emt 0:00:43]} 36. a3 {[%emt 0:01:21]} c3 {[%emt 0:00:12]} 37. b3 {[%emt 0:00:49]} Rxa3 {[%emt 0:01:04]} 38. Bb5 {[%emt 0:00:22]} g5 {[%emt 0:01:40]} 39. h4 {[%emt 0:00:39]} gxh4+ {[%emt 0:00:19]} 40. Kxh4 {[%emt 0:00:10]} Kg6 {[%emt 0:00:43]} 41. Be8+ {[%emt 0:00:49]} Kh7 {[%emt 0:00:36]} 42. Kh5 {[%emt 0:00:21]} Ra1 {[%emt 0:00:55]} 43. Bg6+ {[%emt 0:00:31]} Kg8 {[%emt 0:00:00]} 44. Bf5 {[%emt 0:00:14]} Rd1 {[%emt 0:00:52]} 45. Be6+ {[%emt 0:00:43]} Kh7 {[%emt 0:00:09]} 46. Bf5+ {[%emt 0:00:40]} Kg8 {[%emt 0:00:00]} 47. Re8+ {[%emt 0:00:34]} Kf7 {[%emt 0:00:12]} 48. Bg6+ {[%emt 0:00:18]} Kf6 {[%emt 0:00:06]} 49. Be4 {[%emt 0:00:25]} Rd2 {[%emt 0:01:34]} 50. Kh4 {[%emt 0:00:21]} Kf7 {[%emt 0:00:57]} 51. Ra8 {[%emt 0:00:31]} Be5 {[%emt 0:00:18]} 52. g5 {[%emt 0:00:52]} Rd4 {[%emt 0:00:21]} 53. Ra7+ {[%emt 0:00:29]} Ke6 {[%emt 0:00:21]} 54. Ra6+ {[%emt 0:00:16]} Ke7 {[%emt 0:00:48]} 55. Ra7+ {[%emt 0:00:18]} Kd6 {[%emt 0:00:25]} 56. Ra6+ {[%emt 0:00:09]} Kd7 {[%emt 0:00:44]} 57. Ra7+ {[%emt 0:00:25]} Kd6 {[%emt 0:00:07]} 58. Ra6+ {[%emt 0:00:10]} Kc7 {[%emt 0:00:14]} 59. Rc6+ {[%emt 0:02:07]} Kd7 {[%emt 0:00:15]} 60. Rc4 {[%emt 0:00:16]} Rxc4 {[%emt 0:00:52]} 61. bxc4 {[%emt 0:00:01]} hxg5+ {[%emt 0:00:53]} 62. Kxg5 {[%emt 0:00:06]} Kd6 {[%emt 0:00:09]} 63. Bg6 {[%emt 0:01:23]} a4 {[%emt 0:01:13]} 64. c5+ {[%emt 0:00:20]} Kxc5 {[%emt 0:00:31]} 65. Kf5 {[%emt 0:00:36]} Kd4 {[%emt 0:00:15]} 66. Be8 {[%emt 0:00:49]} a3 {[%emt 0:00:01]} 67. Bf7 {[%emt 0:00:01]} Bb8 {[%emt 0:00:48]} 68. Bb3 {[%emt 0:00:54]} Ke3 {[%emt 0:00:31]} 69. Ke6 {[%emt 0:00:28]} Kd2 {[%emt 0:00:14]} 70. Kd5 {[%emt 0:00:08]} Kc1 {[%emt 0:00:23]} 71. Kc4 {[%emt 0:00:58]} Kb2 {[%emt 0:00:16]} 72. Kd4 {[%emt 0:00:31]} Bd6 {[%emt 0:00:12]} 0-1

[Event "VII Lorca Open 2018"]
[Site "Lorca"]
[Date "2018.12.27"]
[Round "2"]
[White "Salvador Lopez, Daniel"]
[Black "Medarde Santiago, Luis Marcos"]
[Result "0-1"]
[ECO "D00"]
[WhiteElo "2177"]
[BlackElo "2386"]
[Annotator "NA"]
[PlyCount "74"]
[EventDate "2018.12.26"]
[EventType "swiss"]
[EventCountry "ESP"]
[SourceTitle "playchess.com"]
[Source "ChessBase"]
[SourceQuality "1"]
[TimeControl "5400+30"]

1. d4 {[%emt 0:03:32]} Nf6 {[%emt 0:00:00]} 2. Bg5 {[%emt 0:00:37]} d5 {[%emt 0:00:03]} 3. Nd2 {[%emt 0:00:16]} c5 {[%emt 0:00:25]} 4. c3 {[%emt 0:04:23]} Qb6 {[%emt 0:07:33]} 5. Qb3 {[%emt 0:01:22]} cxd4 {[%emt 0:05:59]} 6. cxd4 {[%emt 0:05:08]} Qxd4 {[%emt 0:03:23]} 7. Be3 {[%emt 0:03:52]} Qg4 {[%emt 0:03:06]} 8. g3 {[%emt 0:07:45]} Nc6 {[%emt 0:02:00]} 9. Rc1 {[%emt 1:07:35]} Qd7 10. Bc5 g6 11. Bh3 Qc7 12. Bxc8 {[%emt 0:00:00]} Qxc8 {[%emt 0:23:46]} 13. Ngf3 {[%emt 0:00:00]} Bg7 {[%emt 0:14:00]} 14. O-O {[%emt 0:00:00]} Qd7 {[%emt 0:00:30]} 15. Rfd1 {[%emt 0:00:00]} O-O {[%emt 0:00:09]} 16. e4 {[%emt 0:00:00]} dxe4 {[%emt 0:01:21]} 17. Nxe4 {[%emt 0:00:00]} Qf5 {[%emt 0:01:05]} 18. Nxf6+ {[%emt 0:00:00]} Qxf6 {[%emt 0:00:30]} 19. Nd4 {[%emt 0:00:00]} Rfc8 {[%emt 0:10:37]} 20. Nxc6 {[%emt 0:00:00]} Qxc6 {[%emt 0:00:30]} 21. Bxe7 {[%emt 0:00:00]} Qxc1 {[%emt 0:00:30]} 22. Rxc1 {[%emt 0:00:00]} Rxc1+ {[%emt 0:00:30]} 23. Kg2 {[%emt 0:00:00]} Rc7 {[%emt 0:00:30]} 24. Bg5 {[%emt 0:00:00]} b6 {[%emt 0:00:30]} 25. Bf6 {[%emt 0:00:00]} Bxf6 {[%emt 0:00:30]} 26. Qf3 {[%emt 0:00:00]} Re8 {[%emt 0:00:30]} 27. Qxf6 {[%emt 0:00:00]} Rc2 {[%emt 0:00:30]} 28. Qd4 {[%emt 0:00:00]} h5 {[%emt 0:00:30]} 29. g4 {[%emt 0:00:00]} hxg4 {[%emt 0:00:30]} 30. h3 {[%emt 0:00:00]} Ree2 {[%emt 0:00:30]} 31. Kg3 {[%emt 0:00:00]} Rxf2 {[%emt 0:00:30]} 32. hxg4 {[%emt 0:00:00]} Rxb2 {[%emt 0:00:30]} 33. a4 {[%emt 0:00:00]} a5 {[%emt 0:00:30]} 34. Qd7 {[%emt 0:00:00]} Kh7 {[%emt 0:00:30]} 35. Qd4 {[%emt 0:00:00]} Rg2+ {[%emt 0:00:30]} 36. Kh3 {[%emt 0:00:00]} Rbd2 {[%emt 0:00:30]} 37. Qf6 {[%emt 0:00:00]} Rh2+ {[%emt 0:00:30]} 0-1

[Event "VII Lorca Open 2018"]
[Site "Lorca"]
[Date "2018.12.27"]
[Round "2"]
[White "Rey Malde, Henrique"]
[Black "Domingo Nunez, Ruben"]
[Result "1/2-1/2"]
[ECO "C16"]
[WhiteElo "2171"]
[BlackElo "2383"]
[Annotator "NA"]
[PlyCount "113"]
[EventDate "2018.12.26"]
[EventType "swiss"]
[EventCountry "ESP"]
[SourceTitle "playchess.com"]
[Source "ChessBase"]
[SourceQuality "1"]
[TimeControl "5400+30"]

1. e4 {[%emt 0:00:00]} e6 {[%emt 0:00:00]} 2. d4 {[%emt 0:00:00]} d5 {[%emt 0:00:00]} 3. Nc3 {[%emt 0:00:02]} Bb4 {[%emt 0:00:00]} 4. e5 {[%emt 0:01:40]} Qd7 {[%emt 0:00:04]} 5. a3 {[%emt 0:02:25]} Bxc3+ {[%emt 0:01:01]} 6. bxc3 {[%emt 0:00:07]} b6 {[%emt 0:00:02]} 7. Qg4 {[%emt 0:00:40]} f5 {[%emt 0:00:05]} 8. Qg3 {[%emt 0:00:10]} Ba6 {[%emt 0:00:04]} 9. Bxa6 {[%emt 0:00:25]} Nxa6 {[%emt 0:00:04]} 10. Ne2 {[%emt 0:00:11]} Kf7 {[%emt 0:02:56]} 11. O-O {[%emt 0:04:02]} Ne7 {[%emt 0:01:25]} 12. Nf4 {[%emt 0:04:40]} Rag8 {[%emt 0:20:17]} 13. a4 {[%emt 0:06:24]} Nb8 {[%emt 0:01:32]} 14. a5 {[%emt 0:09:11]} Nbc6 {[%emt 0:00:32]} 15. axb6 {[%emt 0:00:07]} axb6 {[%emt 0:00:05]} 16. Nh5 {[%emt 0:08:01]} Na5 {[%emt 0:02:45]} 17. Ba3 {[%emt 0:08:27]} Ng6 {[%emt 0:09:16]} 18. Bb4 {[%emt 0:03:05]} Nc4 {[%emt 0:04:13]} 19. Ra7 {[%emt 0:02:05]} Ra8 {[%emt 0:00:09]} 20. Rfa1 {[%emt 0:01:43]} Qc6 {[%emt 0:04:32]} 21. h4 {[%emt 0:03:43]} Rxa7 {[%emt 0:04:13]} 22. Rxa7 {[%emt 0:00:07]} Ra8 {[%emt 0:00:18]} 23. Rxa8 {[%emt 0:01:04]} Qxa8 {[%emt 0:00:01]} 24. Nxg7 {[%emt 0:10:02]} Nd2 {[%emt 0:06:34]} 25. Qg5 {[%emt 0:01:57]} Ne4 {[%emt 0:00:11]} 26. Qc1 {[%emt 0:14:40]} Kxg7 {[%emt 0:02:25]} 27. h5 {[%emt 0:00:27]} c5 {[%emt 0:09:07]} 28. f3 {[%emt 0:05:42]} cxb4 {[%emt 0:10:19]} 29. fxe4 {[%emt 0:03:17]} Nf8 {[%emt 0:02:49]} 30. exf5 {[%emt 0:02:32]} exf5 {[%emt 0:07:47]} 31. Qg5+ {[%emt 0:00:06]} Kf7 {[%emt 0:00:05]} 32. Qxf5+ {[%emt 0:00:04]} Ke8 {[%emt 0:00:04]} 33. e6 {[%emt 0:01:49]} Qb7 {[%emt 0:00:51]} 34. cxb4 {[%emt 0:00:45]} Qe7 {[%emt 0:00:39]} 35. Qxd5 {[%emt 0:01:56]} Qxe6 {[%emt 0:03:46]} 36. Qxe6+ {[%emt 0:05:08]} Nxe6 {[%emt 0:00:02]} 37. d5 {[%emt 0:00:14]} Nf4 {[%emt 0:01:38]} 38. c4 {[%emt 0:00:48]} Nd3 {[%emt 0:01:51]} 39. g4 {[%emt 0:00:20]} Nxb4 {[%emt 0:02:06]} 40. Kf2 {[%emt 0:00:53]} Nd3+ {[%emt 0:03:00]} 41. Ke3 {[%emt 0:00:04]} Ne5 {[%emt 0:00:05]} 42. g5 {[%emt 0:00:56]} Nxc4+ {[%emt 0:00:30]} 43. Kd4 {[%emt 0:00:04]} Nd6 {[%emt 0:00:52]} 44. g6 {[%emt 0:00:02]} hxg6 {[%emt 0:01:26]} 45. hxg6 {[%emt 0:00:11]} Kd7 {[%emt 0:01:30]} 46. Ke5 {[%emt 0:00:54]} Ne8 {[%emt 0:00:34]} 47. Kd4 {[%emt 0:01:38]} Ke7 {[%emt 0:00:38]} 48. Ke5 {[%emt 0:00:35]} b5 {[%emt 0:00:45]} 49. Ke4 {[%emt 0:00:35]} Kd6 {[%emt 0:00:43]} 50. Kd4 {[%emt 0:00:12]} Ng7 {[%emt 0:00:29]} 51. Ke4 {[%emt 0:00:18]} Nh5 {[%emt 0:00:28]} 52. Kd4 {[%emt 0:00:23]} Ng3 {[%emt 0:00:34]} 53. Kc3 {[%emt 0:00:28]} Kc5 {[%emt 0:00:05]} 54. d6 {[%emt 0:00:56]} Ne4+ {[%emt 0:00:53]} 55. Kd3 {[%emt 0:00:32]} Kxd6 {[%emt 0:00:36]} 56. Kxe4 {[%emt 0:00:16]} Ke6 {[%emt 0:00:01]} 57. Kd4 {[%emt 0:00:06] Kd5+ [%clk 0:00:00] Kd3 [%clk 0:00:00] Kc5 Kc3 [%clk 0:00:00]} 1/2-1/2